bitfinex-derivatives/quotes_BTCF0:USTF0_20250406
["timestamp","ask_amount","ask_price","bid_price","bid_amount"]
[1743977114016,0.1967,78779.0,78770.0,0.3608]
[1743977114226,0.1992,78780.0,78778.0,0.3608]
[1743977114410,0.00019039,78793.0,78786.0,0.005]
[1743977114612,0.1269923,78791.0,78789.0,0.3608]
[1743977114914,0.001,78814.0,78813.0,0.005]
[1743977115109,0.38185299,78837.0,78836.0,0.005]
[1743977115313,0.1269336,78827.0,78826.0,0.3608]
[1743977115510,0.38185299,78837.0,78826.0,0.3608]
[1743977115726,0.1269327,78828.0,78826.0,0.3608]
[1743977116029,0.18603299,78837.0,78835.0,0.005]
[1743977116225,0.1818,78855.0,78842.0,0.0634543]
[1743977116423,0.00068,78855.0,78854.0,0.8534902]
[1743977116724,0.0634243,78880.0,78868.0,0.005]
[1743977116926,0.126866,78869.0,78868.0,0.00616]
[1743977117116,0.12806601,78869.0,78868.0,0.36696]
[1743977117321,0.00120001,78869.0,78868.0,0.36696]
[1743977117522,0.19670903,78873.0,78868.0,0.36696]
[1743977117722,0.19742903,78873.0,78872.0,0.3608]
[1743977117917,0.32356863,78873.0,78872.0,0.36228]
[1743977118111,0.32356863,78873.0,78856.0,0.3608]
[1743977118112,0.0634388,78862.0,78856.0,0.3608]
[1743977118318,0.00104001,78862.0,78856.0,0.36184]
[1743977118530,0.19670903,78873.0,78872.0,0.005]
[1743977118716,0.0634376,78864.0,78856.0,0.3608]
[1743977119023,0.3608,78859.0,78828.0,0.3608]
[1743977119216,0.1269159,78838.0,78823.0,0.3608]
[1743977119420,0.3742,78858.0,78837.0,0.72170821]
[1743977119726,0.1269159,78838.0,78837.0,0.00102821]
[1743977119922,0.1269159,78838.0,78837.0,0.00010821]
[1743977120127,0.00072,78838.0,78835.0,0.3608]
[1743977120326,0.00019027,78845.0,78844.0,0.1269063]
[1743977120624,0.1269046,78845.0,78844.0,0.3608]
[1743977120817,0.1269046,78845.0,78844.0,0.36172]
[1743977121013,0.1269046,78845.0,78844.0,0.00092]
[1743977121214,0.1269191,78836.0,78835.0,0.3608]
[1743977121418,0.1269191,78836.0,78835.0,0.36172]
[1743977121623,0.1902,78848.0,78835.0,0.36172]
[1743977121624,0.3608,78894.0,78846.0,0.1269019]
[1743977121828,0.184,78872.0,78853.0,0.3608]
[1743977122046,0.1268902,78854.0,78853.0,0.3618]
[1743977122233,0.1268902,78854.0,78853.0,0.001]
[1743977122530,0.3608,78854.0,78835.0,0.3608]
[1743977122719,0.1269091,78843.0,78835.0,0.36172]
[1743977122919,0.0634284,78875.0,78842.0,0.3608]
[1743977123222,0.1269159,78838.0,78837.0,7e-08]
[1743977123528,0.1269836,78796.0,78770.0,0.00190473]
[1743977123728,0.3608,78796.0,78770.0,0.00190473]
[1743977123934,0.1270239,78771.0,78770.0,5e-08]
[1743977124234,0.1270481,78756.0,78755.0,4e-08]
[1743977124533,0.487861,78748.0,78747.0,5e-08]
[1743977125028,0.48797119,78748.0,78747.0,5e-08]
[1743977125220,0.00075019,78748.0,78747.0,0.2769753]
[1743977125423,0.00064,78748.0,78747.0,0.2769753]
[1743977125625,0.00088,78748.0,78747.0,0.1278953]
[1743977125832,0.127941,78748.0,78747.0,0.1269753]
[1743977126033,0.00088,78748.0,78747.0,0.1278553]
[1743977126336,0.3608,78750.0,78747.0,0.1269753]
[1743977126629,0.36144,78750.0,78747.0,0.1269753]
[1743977126826,0.4884989,78750.0,78747.0,0.1269753]
[1743977127037,0.3608,78748.0,78747.0,0.1269753]
[1743977127232,0.36144,78748.0,78747.0,0.1269753]
[1743977127733,0.3608,78778.0,78747.0,0.6340585]
[1743977127919,0.3608,78808.0,78754.0,0.4608]
[1743977128125,0.1981,78837.0,78782.0,0.3608]
[1743977128326,0.19946,78837.0,78802.0,0.1]
[1743977128524,0.3608,78834.0,78809.0,0.1]
[1743977128721,0.0634725,78820.0,78809.0,0.00136]
[1743977128926,0.3837,78836.0,78819.0,0.3608]
[1743977129234,0.21959699,78849.0,78835.0,0.1]
[1743977129543,0.0634657,78829.0,78814.0,0.1843]
[1743977129729,0.0634657,78829.0,78814.0,0.00164]
[1743977129730,0.487753,78815.0,78814.0,0.00164]
[1743977129925,0.21959699,78849.0,78814.0,0.15]
[1743977130132,0.21959699,78849.0,78848.0,0.1268998]
[1743977130324,0.1269014,78847.0,78829.0,2.18468]
[1743977130521,0.3608,78845.0,78829.0,0.36244]
[1743977130724,0.3608,78845.0,78802.0,0.0634868]
[1743977130725,0.3608,78830.0,78800.0,0.00190407]
[1743977130922,0.001,78862.0,78800.0,0.00190407]
[1743977130923,0.1269755,78801.0,78800.0,0.00190407]
[1743977131122,0.3608,78802.0,78786.0,0.1884]
[1743977131332,0.3608,78790.0,78786.0,0.1884]
[1743977131524,0.0634923,78796.0,78793.0,0.00019025]
[1743977131719,0.00019025,78808.0,78793.0,0.00019025]
[1743977131720,0.1269708,78804.0,78793.0,0.00019025]
[1743977131920,0.00015886,78803.0,78793.0,0.00019025]
[1743977132125,0.1269868,78794.0,78793.0,0.00019025]
[1743977132325,0.3608,78794.0,78793.0,0.00019025]
[1743977132525,0.4877868,78794.0,78793.0,0.00019025]
[1743977132729,0.127011,78779.0,78778.0,0.3608]
[1743977132930,0.3608,78779.0,78772.0,0.1884]
[1743977133233,0.3608,78787.0,78778.0,0.12691402]
[1743977133426,0.3853,78793.0,78778.0,0.12691402]
[1743977133427,0.848611,78779.0,78778.0,0.12691402]
[1743977133625,0.3608,78779.0,78772.0,0.1884]
[1743977133822,0.1270206,78773.0,78772.0,0.1884]
[1743977134021,0.3608,78774.0,78772.0,0.1884]
[1743977134228,0.1270206,78773.0,78772.0,0.31533174]
[1743977134427,0.12615021,78773.0,78772.0,0.12693174]
[1743977134626,0.1270271,78769.0,78768.0,0.00019038]
[1743977134834,0.3608,78769.0,78768.0,0.00019038]
[1743977135032,0.36144,78769.0,78768.0,0.00019038]
[1743977135234,0.00064,78769.0,78768.0,0.27713823]
[1743977135430,0.3608,78806.0,78768.0,0.27797823]
[1743977135634,0.00096001,78806.0,78793.0,0.063494]
[1743977135831,0.3608,78824.0,78794.0,0.1896]
[1743977136031,0.00124001,78824.0,78815.0,0.063476]
[1743977136333,0.001,78838.0,78822.0,0.3608]
[1743977136528,0.001,78838.0,78824.0,0.43932554]
[1743977136834,0.3608,78830.0,78825.0,0.15795333]
[1743977137054,0.0634665,78828.0,78823.0,0.19047668]
[1743977137239,0.1269771,78800.0,78799.0,0.1896]
[1743977137435,0.4885371,78800.0,78799.0,0.1896]
[1743977137737,0.1269965,78788.0,78787.0,0.12685525]
[1743977138035,0.00064,78788.0,78786.0,0.00282446]
[1743977138235,0.3608,78800.0,78787.0,0.31190435]
[1743977138443,0.001,78814.0,78804.0,0.0634851]
[1743977138642,0.001,78814.0,78806.0,0.126967]
[1743977138842,0.001,78814.0,78807.0,0.1927]
[1743977139138,0.3608,78845.0,78812.0,0.3608]
[1743977139331,0.00088001,78828.0,78827.0,0.43932554]
[1743977139635,0.487732,78828.0,78827.0,0.00088]
[1743977139936,0.36144,78828.0,78811.0,0.00190375]
[1743977140130,0.36144,78828.0,78818.0,0.43932554]
[1743977140327,0.36144,78828.0,78825.0,0.0634682]
[1743977140530,0.36144,78828.0,78818.0,0.44020554]
[1743977140531,0.00064,78828.0,78824.0,0.3608]
[1743977140728,0.00019038,78831.0,78824.0,0.00088]
[1743977140932,0.00019038,78831.0,78825.0,0.1269362]
[1743977140933,0.00111038,78831.0,78825.0,0.1269362]
[1743977141140,0.00111038,78831.0,78825.0,0.12774089]
[1743977141341,0.00111038,78831.0,78825.0,0.25467639]
[1743977141542,0.00111038,78831.0,78825.0,0.12774089]
[1743977141836,0.00111038,78831.0,78826.0,0.00482774]
[1743977142041,0.00019038,78831.0,78826.0,0.00088]
[1743977142439,0.00019038,78831.0,78828.0,0.3608]
[1743977142639,0.1268945,78852.0,78829.0,0.1855]
[1743977142937,0.3608,78873.0,78847.0,0.0634505]
[1743977143141,0.3608,78873.0,78861.0,0.3608]
[1743977143342,0.5524,78885.0,78878.0,0.126851]
[1743977143546,0.00092,78885.0,78884.0,0.1268419]
[1743977144039,0.3608,78918.0,78885.0,0.01904]
[1743977144241,0.3608,78918.0,78902.0,0.1268127]
[1743977144438,0.36144,78918.0,78907.0,0.3608]
[1743977144739,0.4875881,78918.0,78907.0,0.3608]
[1743977144945,0.3608,78918.0,78908.0,0.12672665]
[1743977145138,0.0634024,78908.0,78886.0,0.3608]
[1743977145337,0.0634038,78906.0,78905.0,0.00019013]
[1743977145644,0.1994,78907.0,78889.0,0.12672665]
[1743977145645,0.1268323,78890.0,78889.0,0.12672665]
[1743977145834,0.1268307,78891.0,78873.0,0.1989]
[1743977146140,0.36098969,78913.0,78888.0,0.3608]
[1743977146346,0.3608,78927.0,78903.0,0.3608]
[1743977146545,0.3608,78919.0,78900.0,0.43932554]
[1743977146843,0.1267969,78912.0,78904.0,0.12671862]
[1743977147047,0.0633962,78915.0,78904.0,0.12671862]
[1743977147341,0.3608,78947.0,78914.0,0.3608]
[1743977147544,0.61898487,78939.0,78902.0,0.12690875]
[1743977147735,0.1979,78957.0,78902.0,0.12690875]
[1743977147736,0.1979,78933.0,78912.0,0.3608]
[1743977147934,0.18430574,78957.0,78923.0,0.43932554]
[1743977148134,0.3608,78950.0,78928.0,0.3608]
[1743977148544,0.3608,78942.0,78930.0,0.3608]
[1743977148739,0.3618,78934.0,78924.0,0.11670325]
[1743977148943,0.001,78934.0,78933.0,0.3608]
[1743977149147,0.001,78934.0,78931.0,0.12669293]
[1743977149443,0.001,78934.0,78933.0,0.3608]
[1743977149644,0.18430574,78957.0,78933.0,0.36192]
[1743977149834,0.18430574,78957.0,78949.0,0.0633685]
[1743977150037,0.3608,78955.0,78949.0,0.00112]
[1743977150240,0.3608,78955.0,78935.0,0.00012208]
[1743977150241,0.1267583,78936.0,78935.0,0.00012208]
[1743977150443,0.18430574,78957.0,78944.0,0.00019001]
[1743977150639,0.61898487,78976.0,78956.0,0.3608]
[1743977150845,0.3608,78976.0,78966.0,0.43932554]
[1743977151046,0.3608,78976.0,78966.0,0.44044554]
[1743977151344,0.3608,78976.0,78970.0,0.3608]
[1743977151543,0.3608,78971.0,78967.0,0.07146801]
[1743977151745,0.1267583,78936.0,78935.0,0.36092208]
[1743977151933,0.3608,78947.0,78935.0,0.36092208]
[1743977152138,0.3608,78976.0,78964.0,0.12662555]
[1743977152435,0.3608,78965.0,78950.0,0.80012554]
[1743977152640,0.3608,78967.0,78940.0,0.43932554]
[1743977152836,0.3608,78967.0,78938.0,0.3608]
[1743977152837,0.1969,78981.0,78959.0,0.1267207]
[1743977153038,0.00018962,78965.0,78964.0,0.1267134]
[1743977153240,0.3618,78982.0,78973.0,0.1266977]
[1743977153444,0.3618,78982.0,78978.0,0.1266901]
[1743977153640,0.3618,78982.0,78979.0,0.3677]
[1743977154046,0.3618,78982.0,78979.0,0.49431834]
[1743977154244,0.3618,78982.0,78979.0,0.4310442]
[1743977154548,0.001,78982.0,78980.0,0.12661834]
[1743977154742,0.001,78982.0,78981.0,0.1812]
[1743977155142,0.00164,78982.0,78973.0,0.00019001]
[1743977155342,0.3608,78974.0,78973.0,0.00019001]
[1743977155545,0.36144,78974.0,78973.0,0.00019001]
[1743977155740,0.36144,78974.0,78957.0,0.00190035]
[1743977155741,0.06335,78973.0,78957.0,0.00190035]
[1743977155942,0.3608,78963.0,78957.0,0.00274035]
[1743977156143,0.3616,78963.0,78957.0,0.00274035]
[1743977156344,0.3616,78963.0,78958.0,0.49342475]
[1743977156645,0.1267214,78959.0,78958.0,0.12746475]
[1743977156847,0.1267214,78959.0,78958.0,0.12662475]
[1743977156848,0.1274414,78959.0,78958.0,0.12662475]
[1743977157050,0.00072,78959.0,78958.0,0.12662475]
[1743977157246,0.3608,78980.0,78958.0,0.68562475]
[1743977157452,0.3758,78999.0,78975.0,0.0633472]
[1743977157640,0.00132,78999.0,78976.0,0.3668]
[1743977157840,0.00132,78999.0,78993.0,0.1266661]
[1743977158044,0.00132,78999.0,78993.0,0.3622]
[1743977158250,0.00132,78999.0,78994.0,0.1911]
[1743977158438,0.00132,78999.0,78994.0,0.19242]
[1743977158640,0.00132,78999.0,78998.0,0.1266589]
[1743977158843,0.1,79000.0,78999.0,0.1266573]
[1743977159040,0.1,79000.0,78999.0,0.00132]
[1743977159241,0.0633348,78992.0,78982.0,0.00189969]
[1743977159542,0.1,79000.0,78999.0,0.12658788]
[1743977159741,0.10072,79000.0,78999.0,0.12658788]
[1743977159947,0.1,79000.0,78999.0,0.4887773]
[1743977160148,0.3608,79017.0,78999.0,0.36212]
[1743977160342,0.0633207,79009.0,78999.0,0.00132]
[1743977160543,0.3685,79024.0,78999.0,0.51212]
[1743977160743,0.3608,79040.0,79020.0,0.3608]
[1743977160944,0.0632983,79037.0,79021.0,0.1911]
[1743977161248,0.1266541,79001.0,79000.0,0.00253164]
[1743977161449,0.3608,79001.0,79000.0,0.00253164]
[1743977161848,0.3608,79001.0,79000.0,0.00385164]
[1743977162052,0.3608,79001.0,79000.0,0.12911311]
[1743977162346,0.2487184,79012.0,79000.0,0.12911311]
[1743977162347,0.16259,79012.0,79000.0,0.49123311]
[1743977162542,0.16259,79012.0,79003.0,0.3608]
[1743977162745,0.16259,79012.0,79003.0,0.20023302]
[1743977163048,0.3608,79025.0,79014.0,0.1266326]
[1743977163358,0.1266114,79028.0,79012.0,0.1266364]
[1743977163554,0.1266127,79027.0,79019.0,0.3608]
[1743977163751,0.424096,79040.0,79019.0,0.36212]
[1743977163953,0.3608,79040.0,79020.0,0.1982]
[1743977164146,0.3608,79047.0,79026.0,0.3608]
[1743977164459,0.001,79054.0,79046.0,0.3608]
[1743977164749,0.001,79054.0,79047.0,0.1856]
[1743977164948,0.001,79054.0,79047.0,0.18692]
[1743977165146,0.1265787,79048.0,79047.0,0.12784382]
[1743977165343,0.4873787,79048.0,79047.0,0.00132]
[1743977165542,0.3618,79054.0,79042.0,0.3608]
[1743977165748,0.3618,79054.0,79047.0,0.12652382]
[1743977165944,0.1816,79053.0,79047.0,0.00132]
[1743977166142,0.001,79054.0,79049.0,0.3608]
[1743977166353,0.3608,79064.0,79050.0,0.1856]
[1743977166555,0.3608,79064.0,79050.0,0.37772]
[1743977166755,0.0632817,79058.0,79050.0,0.18696]
[1743977166950,0.3608,79064.0,79051.0,0.12649101]
[1743977167154,0.3608,79064.0,79051.0,0.31341101]
[1743977167358,0.3608,79064.0,79052.0,0.1908]
[1743977167651,0.5108,79064.0,79049.0,0.00018975]
[1743977167841,0.3608,79037.0,79010.0,0.00189836]
[1743977168040,0.7216,79011.0,78992.0,0.1937]
[1743977168251,0.3608,79014.0,79011.0,0.12648941]
[1743977168551,0.3608,79014.0,78992.0,0.1937]
[1743977168750,0.1975,79021.0,79002.0,0.3608]
[1743977168956,0.194,79023.0,79007.0,0.1266433]
[1743977169155,0.0001889,79015.0,79009.0,0.3608]
[1743977169449,0.0001889,79015.0,79008.0,0.1266427]
[1743977169450,0.3608,79010.0,79008.0,0.12656225]
[1743977169655,0.39048749,79009.0,78999.0,0.00018975]
[1743977169849,0.0001889,79015.0,79008.0,0.3608]
[1743977170043,0.3608,79028.0,79014.0,0.3608]
[1743977170244,0.00088001,79028.0,79021.0,0.3608]
[1743977170447,0.36168001,79037.0,79021.0,0.36168]
[1743977170448,0.3608,79037.0,79021.0,0.36168]
[1743977170754,0.4874204,79022.0,79021.0,0.00088]
[1743977171056,0.36144,79022.0,78998.0,0.3608]
[1743977171356,0.4241287,78999.0,78998.0,0.00088]
[1743977171653,0.3608,78999.0,78973.0,0.3608]
[1743977171845,0.0633331,78994.0,78991.0,0.00018988]
[1743977172046,0.3608,78992.0,78973.0,0.3608]
[1743977172245,0.1266974,78974.0,78973.0,0.00064]
[1743977172453,0.1266974,78974.0,78963.0,0.00101313]
[1743977172454,0.0633556,78966.0,78963.0,0.00101313]
[1743977172656,0.3608,78964.0,78963.0,0.00101313]
[1743977172856,0.1267375,78949.0,78948.0,0.00190006]
[1743977173052,0.1267375,78949.0,78930.0,0.3608]
[1743977173053,0.72224,78949.0,78911.0,0.019]
[1743977173254,0.3608,78916.0,78895.0,0.03305636]
[1743977173458,0.0634042,78905.0,78900.0,0.10018975]
[1743977173657,0.00092,78905.0,78901.0,0.12663918]
[1743977173854,0.126813,78902.0,78900.0,0.1]
[1743977174052,0.1948,78901.0,78900.0,0.1]
[1743977174253,0.00098164,78901.0,78900.0,0.13141794]
[1743977174459,0.00014164,78901.0,78900.0,0.25879663]
[1743977174955,0.00014164,78901.0,78900.0,0.13205794]
[1743977175155,0.00019,78910.0,78900.0,0.76959984]
[1743977175348,0.3608,78931.0,78917.0,0.1267883]
[1743977175548,0.00959191,78975.0,78926.0,0.0633869]
[1743977175749,0.3608,79006.0,78972.0,0.3608]
[1743977176050,0.3608,79006.0,78974.0,0.3608]
[1743977176051,0.3608,78992.0,78974.0,0.3608]
[1743977176251,0.1948,78991.0,78985.0,0.3608]
[1743977176457,0.37794,78991.0,78985.0,0.36216]
[1743977176652,0.3608,78990.0,78985.0,0.00136]
[1743977176954,0.1267278,78955.0,78940.0,0.43932554]
[1743977177151,0.48827359,78955.0,78941.0,0.1889]
[1743977177349,0.48827359,78955.0,78923.0,0.1889]
[1743977177350,0.51144,78955.0,78923.0,0.1889]
[1743977177545,0.4875776,78924.0,78923.0,0.00128]
[1743977177752,0.126768,78930.0,78929.0,0.1266015]
[1743977178053,0.36144,78930.0,78908.0,0.3608]
[1743977178261,0.1267922,78915.0,78910.0,0.43932554]
[1743977178466,0.4875985,78911.0,78910.0,0.00128]
[1743977178650,0.4875985,78911.0,78900.0,0.1]
[1743977178651,0.063403,78907.0,78900.0,0.1]
[1743977178856,0.4876146,78901.0,78900.0,0.1]
[1743977179449,0.3608,78947.0,78901.0,0.0634066]
[1743977179655,0.1926,78946.0,78931.0,0.1267654]
[1743977179858,0.1926,78946.0,78917.0,0.3608]
[1743977179859,0.1926,78946.0,78925.0,1.81992]
[1743977180061,0.1926,78946.0,78909.0,0.3608]
[1743977180062,0.0633828,78932.0,78909.0,0.3608]
[1743977180260,0.0633881,78925.0,78904.0,0.3608]
[1743977180455,0.1926,78924.0,78910.0,0.12672745]
[1743977180660,0.0001225,78923.0,78910.0,0.12672745]
[1743977180856,0.0001225,78923.0,78897.0,0.3608]
[1743977180857,0.0634023,78908.0,78890.0,0.00190167]
[1743977181064,0.3608,78892.0,78876.0,0.3608]
[1743977181367,0.1268419,78884.0,78876.0,0.3608]
[1743977181560,0.39200707,78891.0,78883.0,0.36091924]
[1743977181761,0.3608,78928.0,78890.0,0.3608]
[1743977181967,0.1926,78917.0,78900.0,0.43932554]
[1743977182164,0.1926,78917.0,78897.0,0.3608]
[1743977182165,0.1993,78916.0,78897.0,0.3608]
[1743977182462,0.3608,78928.0,78915.0,0.3608]
[1743977182656,0.3608,78928.0,78918.0,0.43932554]
[1743977182858,0.3875,78927.0,78918.0,0.43932554]
[1743977183162,0.3875,78927.0,78905.0,0.3608]
[1743977183163,0.3608,78921.0,78905.0,0.3608]
[1743977183367,0.3608,78928.0,78905.0,0.3608]
[1743977183368,0.0633939,78918.0,78905.0,0.3608]
[1743977183565,0.0634045,78905.0,78901.0,2e-08]
[1743977183861,0.1268676,78868.0,78867.0,0.00101436]
[1743977184064,0.4876676,78868.0,78867.0,0.01758201]
[1743977184258,0.1269191,78836.0,78835.0,0.44661329]
[1743977184463,0.7216,78836.0,78835.0,0.44661329]
[1743977184662,0.3608,78856.0,78835.0,0.61179933]
[1743977184856,0.3608,78865.0,78840.0,0.80012554]
[1743977185055,0.3608,78879.0,78848.0,0.3608]
[1743977185255,0.00950794,78921.0,78849.0,0.01430297]
[1743977185256,0.3608,78860.0,78849.0,0.01430297]
[1743977185457,0.1268991,78849.0,78842.0,0.01437045]
[1743977185664,0.3608,78867.0,78843.0,0.01437045]
[1743977185866,0.3608,78884.0,78863.0,0.3608]
[1743977186067,0.3608,78884.0,78870.0,0.43932554]
[1743977186459,0.3608,78884.0,78870.0,0.44020554]
[1743977186857,0.1268472,78881.0,78870.0,0.44020554]
[1743977187061,0.3608,78884.0,78871.0,0.12677966]
[1743977187263,0.3608,78876.0,78871.0,0.12765966]
[1743977187467,0.3608,78884.0,78873.0,0.1268584]
[1743977187662,0.001,78886.0,78873.0,0.00088]
[1743977187865,0.3608,78913.0,78879.0,0.3608]
[1743977188059,0.3608,78898.0,78890.0,0.0634159]
[1743977188367,0.1855,78933.0,78908.0,0.0634011]
[1743977188571,0.3608,78936.0,78914.0,0.3608]
[1743977188868,0.3608,78953.0,78933.0,0.3608]
[1743977189064,0.3608,78960.0,78949.0,0.3608]
[1743977189261,0.1898,78965.0,78953.0,0.3608]
[1743977189584,0.3608,78961.0,78954.0,0.1976]
[1743977189864,0.109081,78969.0,78968.0,0.126707]
[1743977190167,0.109081,78969.0,78968.0,0.487507]
[1743977190362,0.18374955,78979.0,78971.0,0.0633505]
[1743977190563,0.18374955,78979.0,78978.0,0.3608]
[1743977190769,0.3922141,79000.0,78978.0,0.36188]
[1743977190966,0.3922141,79000.0,78981.0,0.3608]
[1743977191171,0.3922141,79000.0,78994.0,0.7216]
[1743977191466,0.3922141,79000.0,78994.0,0.73696796]
[1743977191764,0.3922141,79000.0,78995.0,0.21150796]
[1743977191965,0.3618,79054.0,78996.0,0.01427187]
[1743977192169,0.3608,79047.0,79028.0,0.3608]
[1743977192463,0.13697074,79046.0,79045.0,0.3608]
[1743977192769,0.001,79054.0,79045.0,0.362]
[1743977193064,0.0632885,79050.0,79046.0,0.01869573]
[1743977193269,0.1265803,79047.0,79046.0,0.14520514]
[1743977193465,0.1265803,79047.0,79046.0,0.01869573]
[1743977193656,0.6373803,79047.0,79046.0,3e-08]
[1743977193856,0.9981803,79047.0,79046.0,3e-08]
[1743977194057,0.126606,79031.0,79030.0,8e-08]
[1743977194368,0.0633143,79017.0,79009.0,0.3608]
[1743977194564,0.3608,79010.0,78998.0,0.3608]
[1743977194766,0.1266589,78998.0,78997.0,4e-08]
[1743977194973,0.00076,78998.0,78992.0,0.3608]
[1743977195264,0.1266669,78993.0,78992.0,0.36156]
[1743977195466,0.00076,78993.0,78992.0,0.36156]
[1743977195667,0.00012892,78993.0,78992.0,0.50284151]
[1743977196161,0.00012892,78993.0,78992.0,0.51969901]
[1743977196363,0.00012892,78993.0,78992.0,0.51969905]
[1743977196771,0.12679582,78993.0,78992.0,0.51969905]
[1743977196978,0.12759582,78993.0,78992.0,0.51969905]
[1743977197264,0.00092892,78993.0,78992.0,0.50284151]
[1743977197469,0.00012892,78993.0,78992.0,0.50284151]
[1743977197663,0.48759582,78993.0,78992.0,0.00076]
[1743977197866,0.1266845,78982.0,78980.0,0.3608]
[1743977198167,0.1267134,78964.0,78961.0,0.3608]
[1743977198366,0.1276334,78964.0,78963.0,0.0162855]
[1743977198572,0.12779766,78964.0,78963.0,0.01564645]
[1743977198772,0.0633651,78954.0,78948.0,0.3608]
[1743977198968,0.4875375,78949.0,78948.0,0.00072]
[1743977199270,0.00092,78954.0,78948.0,0.03176685]
[1743977199460,0.1267359,78950.0,78949.0,0.03176685]
[1743977199660,0.1277359,78950.0,78949.0,0.03276685]
[1743977199863,0.1277359,78950.0,78943.0,0.22285236]
[1743977199864,0.51187775,78950.0,78943.0,0.00018988]
[1743977200062,0.1267792,78923.0,78922.0,0.44661329]
[1743977200273,0.48839984,78923.0,78922.0,0.44725329]
[1743977200571,0.48839984,78923.0,78922.0,0.41481999]
[1743977200769,0.48839984,78923.0,78906.0,0.00011361]
[1743977200770,0.1268049,78907.0,78906.0,1e-08]
[1743977201067,0.1268146,78901.0,78891.0,0.36181405]
[1743977201275,0.1268146,78901.0,78899.0,0.36099]
[1743977201276,0.00088001,78901.0,78899.0,0.36099]
[1743977201474,0.126813,78902.0,78901.0,0.12670657]
[1743977201666,0.00019,78914.0,78901.0,0.00064]
[1743977201871,0.1267532,78940.0,78919.0,0.1267846]
[1743977202069,0.00012004,78939.0,78931.0,0.3608]
[1743977202385,0.3608,78985.0,78957.0,0.0633618]
[1743977202568,0.00064,78940.0,78932.0,0.1267403]
[1743977202767,0.00064,78956.0,78934.0,0.3608]
[1743977203071,0.0633639,78955.0,78950.0,0.3608]
[1743977203377,0.00015692,78954.0,78947.0,0.367]
[1743977203567,0.1267744,78926.0,78925.0,0.019]
[1743977203766,0.4875744,78926.0,78925.0,0.019]
[1743977203968,0.1267792,78923.0,78909.0,1.82036]
[1743977204167,0.1268001,78910.0,78909.0,1.82036]
[1743977204368,0.4876001,78910.0,78909.0,1.82036]
[1743977204562,0.1268001,78910.0,78909.0,1.82036]
[1743977204772,0.3608,78919.0,78909.0,1.82036]
[1743977204973,0.126797,78912.0,78909.0,1.82036]
[1743977205271,0.1267985,78911.0,78910.0,0.30712745]
[1743977205572,0.1268114,78903.0,78902.0,0.00019]
[1743977205777,0.12690536,78903.0,78902.0,0.00019]
[1743977206172,0.12690536,78903.0,78902.0,0.12692869]
[1743977206377,0.12690536,78903.0,78902.0,0.00019]
[1743977207377,9.396e-05,78903.0,78902.0,0.12692869]
[1743977207968,9.396e-05,78903.0,78902.0,0.12764869]
[1743977208168,0.12690536,78903.0,78902.0,0.12764869]
[1743977208370,0.12690536,78903.0,78886.0,1.82056]
[1743977208371,0.15089396,78903.0,78884.0,0.3608]
[1743977208569,0.1268789,78861.0,78860.0,0.220308]
[1743977208769,0.1269063,78844.0,78843.0,7e-08]
[1743977208969,0.1269111,78841.0,78840.0,4e-08]
[1743977209176,0.1269352,78826.0,78825.0,0.40031351]
[1743977209380,0.48784375,78826.0,78825.0,0.23145771]
[1743977209679,0.48892375,78826.0,78825.0,0.23145771]
[1743977209878,0.3608,78826.0,78825.0,0.5082639]
[1743977210067,0.3608,78827.0,78825.0,0.3582639]
[1743977210380,0.7216,78826.0,78825.0,0.23145771]
[1743977210879,0.84869242,78826.0,78825.0,0.23145771]
[1743977211179,0.48789242,78826.0,78825.0,0.23145771]
[1743977211383,0.36095722,78826.0,78825.0,0.35832021]
[1743977211980,0.8485352,78826.0,78825.0,0.23145771]
[1743977212478,0.36092294,78826.0,78825.0,0.23145771]
[1743977212675,0.00012294,78826.0,78825.0,0.35832021]
[1743977213074,0.3608,78827.0,78825.0,0.50832021]
[1743977213278,0.00019025,78833.0,78826.0,0.1821]
[1743977213673,0.1269449,78820.0,78819.0,0.00101498]
[1743977213869,0.4877449,78820.0,78819.0,0.00101498]
[1743977214078,0.48780722,78820.0,78819.0,0.00101498]
[1743977214278,6.232e-05,78820.0,78819.0,0.00101498]
[1743977214684,6.232e-05,78820.0,78819.0,0.30997104]
[1743977214985,0.3608,78838.0,78819.0,0.67077104]
[1743977215187,0.00095025,78833.0,78819.0,0.67141104]
[1743977215483,0.1269449,78820.0,78819.0,0.67141104]
[1743977215680,0.1269449,78820.0,78819.0,0.31061104]
[1743977215890,0.1269465,78819.0,78818.0,0.00019025]
[1743977216078,0.5161465,78819.0,78818.0,0.00019025]
[1743977216885,0.1277465,78819.0,78818.0,0.00019025]
[1743977217394,0.1277465,78819.0,78818.0,0.12706401]
[1743977217577,0.0008,78819.0,78818.0,0.00019025]
[1743977217774,0.3608,78839.0,78818.0,0.19603025]
[1743977217974,0.00095025,78833.0,78825.0,0.3608]
[1743977218174,0.00095025,78833.0,78825.0,0.36148]
[1743977218381,0.1269352,78826.0,78825.0,0.36148]
[1743977218778,0.8716,78826.0,78763.0,0.3608]
[1743977218981,0.1269836,78796.0,78783.0,0.3835]
[1743977219184,0.00096001,78796.0,78783.0,0.3835]
[1743977219482,0.3608,78819.0,78783.0,0.3835]
[1743977219678,0.00064,78819.0,78811.0,0.3608]
[1743977219975,0.00064,78819.0,78811.0,0.00072]
[1743977220177,0.00064,78819.0,78811.0,0.3608]
[1743977220383,0.00064,78819.0,78813.0,0.3608]
[1743977220687,0.3608,78837.0,78818.0,0.063474]
[1743977220889,0.3608,78852.0,78831.0,0.7216]
[1743977221079,0.36168,78852.0,78841.0,0.3608]
[1743977221280,0.00088,78852.0,78843.0,0.1269078]
[1743977221492,0.001,78862.0,78848.0,0.3608]
[1743977221789,0.001,78862.0,78842.0,0.12687779]
[1743977221790,0.0634529,78845.0,78842.0,0.12687779]
[1743977221994,0.1269433,78821.0,78820.0,0.3608]
[1743977222294,0.3608,78843.0,78820.0,0.3616]
[1743977222474,0.126916,78838.0,78831.0,0.3608]
[1743977222680,0.1269188,78837.0,78832.0,0.3782]
[1743977222986,0.0008,78837.0,78832.0,0.50589504]
[1743977223284,0.00019025,78842.0,78832.0,0.65589504]
[1743977223492,0.00019025,78842.0,78841.0,0.3608]